[Event "Torneo Nuevo Centro. Jornada 11"]
[Site "Chess.com"]
[Date "2020.08.28"]
[Round "4"]
[White "Bascuñana Sánchez, Pablo"]
[Black "Gutierrez Lacambra, Jose Antonio"]
[Result "1-0"]
[WhiteElo "1675"]
[BlackElo "1377"]
[TimeControl "180+2"]
[EndTime "11:10:51 PDT"]
[Termination "Victoria de Pabasan2010 por tiempo"]

1. e4 {[%clk 0:03:01.9]} 1... b6 {[%clk 0:03:00.8]} 2. d4 {[%clk 0:03:02]} 2...
Bb7 {[%clk 0:03:01.4]} 3. Nc3 {[%clk 0:03:03.7]} 3... g6 {[%clk 0:03:01.1]} 4.
Nf3 {[%clk 0:03:03.8]} 4... Bg7 {[%clk 0:03:02.1]} 5. Bd3 {[%clk 0:03:02.4]}
5... d6 {[%clk 0:03:03.1]} 6. Be3 {[%clk 0:02:59.9]} 6... e6 {[%clk 0:03:04]} 7.
O-O {[%clk 0:02:59.5]} 7... Ne7 {[%clk 0:03:04.6]} 8. a4 {[%clk 0:02:55.3]} 8...
a6 {[%clk 0:03:02.5]} 9. a5 {[%clk 0:02:51.2]} 9... b5 {[%clk 0:03:02.9]} 10.
Qe2 {[%clk 0:02:41.8]} 10... O-O {[%clk 0:03:02.5]} 11. Nd1 {[%clk 0:02:29.9]}
11... Nbc6 {[%clk 0:02:40.4]} 12. c4 {[%clk 0:02:23.6]} 12... Nb4 {[%clk
0:02:38.9]} 13. cxb5 {[%clk 0:02:20.3]} 13... Nxd3 {[%clk 0:02:36.9]} 14. Qxd3
{[%clk 0:02:20.7]} 14... axb5 {[%clk 0:02:26.9]} 15. Qxb5 {[%clk 0:02:10.4]}
15... Ba6 {[%clk 0:02:25.1]} 16. Qa4 {[%clk 0:02:02.3]} 16... Bxf1 {[%clk
0:02:22.9]} 17. Kxf1 {[%clk 0:02:02.4]} 17... c5 {[%clk 0:02:18.2]} 18. dxc5
{[%clk 0:01:57.7]} 18... dxc5 {[%clk 0:02:18.7]} 19. Bxc5 {[%clk 0:01:57.4]}
19... Qd3+ {[%clk 0:02:05.2]} 20. Kg1 {[%clk 0:01:55.6]} 20... Rfe8 {[%clk
0:01:51.2]} 21. b4 {[%clk 0:01:35.4]} 21... Bxa1 {[%clk 0:01:47.1]} 22. Qxa1
{[%clk 0:01:31.4]} 22... Qxe4 {[%clk 0:01:45.3]} 23. b5 {[%clk 0:01:30.4]} 23...
Nf5 {[%clk 0:01:25.4]} 24. a6 {[%clk 0:01:16.9]} 24... Nh4 {[%clk 0:01:25.1]}
25. Ne3 {[%clk 0:01:09]} 25... Nxf3+ {[%clk 0:01:25.3]} 26. gxf3 {[%clk
0:01:08.1]} 26... Rec8 {[%clk 0:01:15.7]} 27. Bd6 {[%clk 0:01:00.5]} 27... Qxf3
{[%clk 0:01:08]} 28. b6 {[%clk 0:00:59.5]} 28... Rd8 {[%clk 0:01:03.1]} 29. Bc7
{[%clk 0:00:54.5]} 29... Rd7 {[%clk 0:00:19.9]} 30. b7 {[%clk 0:00:27]} 30...
Qxb7 {[%clk 0:00:19]} 31. axb7 {[%clk 0:00:26.9]} 31... Rxa1+ {[%clk 0:00:18.9]}
32. Kg2 {[%clk 0:00:28.4]} 32... Rb1 {[%clk 0:00:17.2]} 33. b8=Q+ {[%clk
0:00:26.5]} 33... Rxb8 {[%clk 0:00:16.6]} 34. Bxb8 {[%clk 0:00:28.1]} 34... Rb7
{[%clk 0:00:16.4]} 35. Bg3 {[%clk 0:00:27.9]} 35... Kf8 {[%clk 0:00:17.2]} 36.
Bd6+ {[%clk 0:00:26.7]} 36... Ke8 {[%clk 0:00:17.6]} 37. Ng4 {[%clk 0:00:26.4]}
37... f5 {[%clk 0:00:15.1]} 38. Nf6+ {[%clk 0:00:22.3]} 38... Kf7 {[%clk
0:00:08.8]} 39. Nxh7 {[%clk 0:00:20]} 39... Rd7 {[%clk 0:00:04.9]} 40. Bf4
{[%clk 0:00:16.2]} 40... Rd4 {[%clk 0:00:04.5]} 41. Bh6 {[%clk 0:00:10.2]} 41...
e5 {[%clk 0:00:02.8]} 42. Ng5+ {[%clk 0:00:10.1]} 42... Kf6 {[%clk 0:00:02.7]}
43. Nf3 {[%clk 0:00:09.1]} 43... Ra4 {[%clk 0:00:03.1]} 44. Bf8 {[%clk
0:00:08.8]} 44... Ra2 {[%clk 0:00:02.3]} 45. Bd6 {[%clk 0:00:09.1]} 45... e4
{[%clk 0:00:03.3]} 46. Nd4 {[%clk 0:00:05.7]} 46... g5 {[%clk 0:00:02.7]} 47.
Bc7 {[%clk 0:00:04.8]} 47... e3 {[%clk 0:00:02.9]} 48. Bd8+ {[%clk 0:00:05.3]}
1

[Event "Torneo Nuevo Centro. Jornada 11"]
[Site "Chess.com"]
[Date "2020.08.28"]
[Round "4"]
[White "Hernández Tomás, Efrén"]
[Black "Yatseta Fernandez, Marc Kazymyr"]
[Result "1/2-1/2"]
[WhiteElo "1119"]
[BlackElo "1506"]
[TimeControl "180+2"]
[EndTime "11:11:06 PDT"]
[Termination "Tablas por repeticiÃ³n"]

1. e4 {[%clk 0:03:01.9]} 1... e5 {[%clk 0:02:59.3]} 2. Nf3 {[%clk 0:03:03.3]}
2... Nc6 {[%clk 0:03:00.5]} 3. Bc4 {[%clk 0:03:03.9]} 3... d6 {[%clk 0:03:00]}
4. d4 {[%clk 0:03:04.2]} 4... Be7 {[%clk 0:02:51.1]} 5. dxe5 {[%clk 0:03:04.6]}
5... Nxe5 {[%clk 0:02:49.9]} 6. Nxe5 {[%clk 0:03:04.7]} 6... dxe5 {[%clk
0:02:51.8]} 7. Qxd8+ {[%clk 0:03:04.2]} 7... Bxd8 {[%clk 0:02:53.7]} 8. Nc3
{[%clk 0:03:01.5]} 8... Nf6 {[%clk 0:02:52.8]} 9. Bg5 {[%clk 0:03:00.8]} 9... h6
{[%clk 0:02:52.3]} 10. Bxf6 {[%clk 0:03:00.5]} 10... Bxf6 {[%clk 0:02:53]} 11.
Nd5 {[%clk 0:03:00.8]} 11... Bd8 {[%clk 0:02:51.3]} 12. O-O {[%clk 0:02:57.4]}
12... c6 {[%clk 0:02:48.1]} 13. Nc3 {[%clk 0:02:54.2]} 13... O-O {[%clk
0:02:48.8]} 14. Rad1 {[%clk 0:02:51.7]} 14... Bf6 {[%clk 0:02:47.8]} 15. f3
{[%clk 0:02:45]} 15... Rd8 {[%clk 0:02:34.2]} 16. Rxd8+ {[%clk 0:02:43.3]} 16...
Bxd8 {[%clk 0:02:34.3]} 17. Rd1 {[%clk 0:02:43.7]} 17... Be7 {[%clk 0:02:34.4]}
18. Be2 {[%clk 0:02:36.7]} 18... Be6 {[%clk 0:02:25]} 19. b3 {[%clk 0:02:33.9]}
19... Kf8 {[%clk 0:02:16.5]} 20. Na4 {[%clk 0:02:24.1]} 20... Ke8 {[%clk
0:02:02]} 21. c4 {[%clk 0:02:15.1]} 21... Rd8 {[%clk 0:01:50.2]} 22. Rxd8+
{[%clk 0:02:14.2]} 22... Bxd8 {[%clk 0:01:52.1]} 23. Nc5 {[%clk 0:02:14.4]}
23... Bc8 {[%clk 0:01:51.7]} 24. a4 {[%clk 0:02:09.2]} 24... b6 {[%clk
0:01:47.4]} 25. Nd3 {[%clk 0:02:09.4]} 25... f6 {[%clk 0:01:43.8]} 26. b4 {[%clk
0:02:05.7]} 26... a6 {[%clk 0:01:38.4]} 27. c5 {[%clk 0:02:02.4]} 27... Ke7
{[%clk 0:01:32.2]} 28. Kf2 {[%clk 0:01:54.3]} 28... a5 {[%clk 0:01:21.9]} 29.
bxa5 {[%clk 0:01:42.8]} 29... bxa5 {[%clk 0:01:17.4]} 30. Bd1 {[%clk 0:01:38.7]}
30... Ba6 {[%clk 0:01:12.4]} 31. Ke3 {[%clk 0:01:33.6]} 31... Ke6 {[%clk
0:01:09.6]} 32. g4 {[%clk 0:01:33.6]} 32... Bxd3 {[%clk 0:01:04.5]} 33. Kxd3
{[%clk 0:01:33.4]} 33... Be7 {[%clk 0:00:57.5]} 34. h4 {[%clk 0:01:27.2]} 34...
Bxc5 {[%clk 0:00:55.6]} 35. Kc4 {[%clk 0:01:24.8]} 35... Bd4 {[%clk 0:00:56.2]}
36. h5 {[%clk 0:01:22.4]} 36... Kd6 {[%clk 0:00:56.2]} 37. Bb3 {[%clk
0:01:17.6]} 37... Be3 {[%clk 0:00:48.7]} 38. Bd1 {[%clk 0:01:15.1]} 38... Bd2
{[%clk 0:00:39.5]} 39. Bb3 {[%clk 0:01:13.9]} 39... Kc7 {[%clk 0:00:36.8]} 40.
Kc5 {[%clk 0:01:10.4]} 40... Bb4+ {[%clk 0:00:34.3]} 41. Kc4 {[%clk 0:01:10.3]}
41... Kb6 {[%clk 0:00:33.1]} 42. Bd1 {[%clk 0:01:09.2]} 42... Kc7 {[%clk
0:00:24.4]} 43. Bb3 {[%clk 0:01:09.4]} 43... Kd6 {[%clk 0:00:22.5]} 44. Bc2
{[%clk 0:01:10.1]} 44... Ke7 {[%clk 0:00:21.4]} 45. Bd3 {[%clk 0:01:10.4]} 45...
Kf7 {[%clk 0:00:21.6]} 46. Bc2 {[%clk 0:01:11.1]} 46... g6 {[%clk 0:00:22.4]}
47. hxg6+ {[%clk 0:01:11.5]} 47... Kxg6 {[%clk 0:00:24.3]} 48. Kd3 {[%clk
0:01:08.2]} 48... Kg5 {[%clk 0:00:23.3]} 49. Ke3 {[%clk 0:01:08.3]} 49... Bc5+
{[%clk 0:00:22.1]} 50. Ke2 {[%clk 0:01:04.4]} 50... Kf4 {[%clk 0:00:20.3]} 51.
Bd3 {[%clk 0:01:04.6]} 51... Bd4 {[%clk 0:00:20.5]} 52. Ba6 {[%clk 0:01:03.6]}
52... c5 {[%clk 0:00:19.7]} 53. Bc8 {[%clk 0:00:58.2]} 53... Kg5 {[%clk
0:00:19.9]} 54. Ba6 {[%clk 0:00:58.1]} 54... h5 {[%clk 0:00:20.7]} 55. gxh5
{[%clk 0:00:58.4]} 55... Kxh5 {[%clk 0:00:22.6]} 56. Bc4 {[%clk 0:00:51.2]}
56... Kg5 {[%clk 0:00:23.7]} 57. Bd5 {[%clk 0:00:50.9]} 57... f5 {[%clk
0:00:23.2]} 58. exf5 {[%clk 0:00:51.8]} 58... Kxf5 {[%clk 0:00:25.1]} 59. Be4+
{[%clk 0:00:51.7]} 59... Kf4 {[%clk 0:00:25.9]} 60. Bd5 {[%clk 0:00:51.9]} 60...
Kg5 {[%clk 0:00:21.8]} 61. Be6 {[%clk 0:00:47.9]} 61... Kf4 {[%clk 0:00:19.4]}
62. Bd5 {[%clk 0:00:48.7]} 62... Kg3 {[%clk 0:00:20.6]} 63. Bc4 {[%clk
0:00:46.8]} 63... Kf4 {[%clk 0:00:19.5]} 64. Bd5 {[%clk 0:00:47.2]} 1/2-1

[Event "Torneo Nuevo Centro. Jornada 11"]
[Site "Chess.com"]
[Date "2020.08.28"]
[Round "4"]
[White "Sampedro Roig, Josep Francesc"]
[Black "Castellano López, Javier"]
[Result "1-0"]
[WhiteElo "1849"]
[BlackElo "1941"]
[TimeControl "180+2"]
[EndTime "11:11:37 PDT"]
[Termination "Victoria de Abrekurios por abandono"]

1. e4 {[%clk 0:03:00.5]} 1... c6 {[%clk 0:02:59.6]} 2. d4 {[%clk 0:03:00.8]}
2... d5 {[%clk 0:03:01.5]} 3. Nc3 {[%clk 0:03:02.1]} 3... dxe4 {[%clk
0:03:02.1]} 4. Nxe4 {[%clk 0:03:03.6]} 4... Bf5 {[%clk 0:03:03.7]} 5. Ng3 {[%clk
0:03:05.2]} 5... Bg6 {[%clk 0:03:04.5]} 6. h4 {[%clk 0:03:07.1]} 6... h6 {[%clk
0:03:04.5]} 7. Nh3 {[%clk 0:03:09]} 7... e6 {[%clk 0:03:03.6]} 8. Nf4 {[%clk
0:03:09.9]} 8... Bh7 {[%clk 0:03:04.5]} 9. Be3 {[%clk 0:03:11.5]} 9... Nd7
{[%clk 0:03:05.2]} 10. Bd3 {[%clk 0:03:13.4]} 10... Bxd3 {[%clk 0:03:05.5]} 11.
Qxd3 {[%clk 0:03:15.3]} 11... Ngf6 {[%clk 0:03:06.3]} 12. O-O-O {[%clk
0:03:16.3]} 12... Bd6 {[%clk 0:02:57.1]} 13. Ngh5 {[%clk 0:03:12.5]} 13... Nxh5
{[%clk 0:02:46.4]} 14. Nxh5 {[%clk 0:03:12.6]} 14... g6 {[%clk 0:02:33.3]} 15.
Nf4 {[%clk 0:03:10.5]} 15... Qf6 {[%clk 0:02:29.7]} 16. g3 {[%clk 0:03:02.1]}
16... O-O-O {[%clk 0:02:27.9]} 17. Rhe1 {[%clk 0:02:44.1]} 17... g5 {[%clk
0:02:19.9]} 18. hxg5 {[%clk 0:02:38.2]} 18... hxg5 {[%clk 0:02:21.8]} 19. Ne2
{[%clk 0:02:29.1]} 19... Nb6 {[%clk 0:02:17.6]} 20. Nc3 {[%clk 0:02:25.4]} 20...
Nd5 {[%clk 0:02:15.6]} 21. Ne4 {[%clk 0:02:22.6]} 21... Qg6 {[%clk 0:01:53.9]}
22. Nxg5 {[%clk 0:02:10.1]} 22... Nxe3 {[%clk 0:01:46]} 23. Qxe3 {[%clk
0:02:09.9]} 23... Be7 {[%clk 0:01:28.4]} 24. Nf3 {[%clk 0:02:06.5]} 24... Bf8
{[%clk 0:01:08.4]} 25. Ne5 {[%clk 0:02:06]} 25... Qh5 {[%clk 0:00:58.2]} 26. Qe4
{[%clk 0:01:50.7]} 26... Qg5+ {[%clk 0:00:36.1]} 27. Kb1 {[%clk 0:01:46.4]}
27... Kb8 {[%clk 0:00:22.9]} 28. Nxf7 {[%clk 0:01:43.9]} 28... Qe7 {[%clk
0:00:10.3]} 29. Nxh8 {[%clk 0:01:33.4]} 29... Bg7 {[%clk 0:00:10]} 30. Ng6
{[%clk 0:01:30.7]} 30... Qb4 {[%clk 0:00:11.4]} 31. Ne5 {[%clk 0:01:24.4]} 31...
a5 {[%clk 0:00:09.1]} 32. c3 {[%clk 0:01:23.6]} 32... Qb6 {[%clk 0:00:09.3]} 33.
Qg6 {[%clk 0:01:18.3]} 33... Bf8 {[%clk 0:00:08.6]} 34. Qxe6 {[%clk 0:01:11.2]}
34... Ba3 {[%clk 0:00:09.2]} 35. Qb3 {[%clk 0:01:11.4]} 35... Bb4 {[%clk
0:00:05.5]} 36. cxb4 {[%clk 0:01:05.4]} 36... axb4 {[%clk 0:00:07.4]} 37. Nc4
{[%clk 0:01:01.5]} 37... Qb5 {[%clk 0:00:08.3]} 38. a3 {[%clk 0:00:56.8]} 38...
Qf5+ {[%clk 0:00:09.7]} 39. Qc2 {[%clk 0:00:55.8]} 39... Qf6 {[%clk 0:00:03.3]}
40. axb4 {[%clk 0:00:50.9]} 40... Rxd4 {[%clk 0:00:04.7]} 41. Rxd4 {[%clk
0:00:51.3]} 41... Qxd4 {[%clk 0:00:06.6]} 42. Rd1 {[%clk 0:00:49.4]} 42... Qg4
{[%clk 0:00:06.6]} 43. Ne3 {[%clk 0:00:39.3]} 43... Qf3 {[%clk 0:00:06.2]} 44.
Rd8+ {[%clk 0:00:38.2]} 44... Kc7 {[%clk 0:00:06.9]} 45. Qd2 {[%clk 0:00:38.5]}
45... Qh1+ {[%clk 0:00:06.8]} 46. Kc2 {[%clk 0:00:37.7]} 46... Qh7+ {[%clk
0:00:07]} 47. Qd3 {[%clk 0:00:37.5]} 47... Qh2 {[%clk 0:00:06.8]} 48. Qd6+
{[%clk 0:00:36.8]} 48... Kb6 {[%clk 0:00:08]} 49. Qc5+ {[%clk 0:00:37.4]} 49...
Kc7 {[%clk 0:00:09.1]} 50. Rf8 {[%clk 0:00:34]} 50... Qh7+ {[%clk 0:00:09.2]}
51. Kd2 {[%clk 0:00:29]} 51... Qg7 {[%clk 0:00:09.2]} 52. Kc2 {[%clk 0:00:21.2]}
52... Qg6+ {[%clk 0:00:08.4]} 53. Kb3 {[%clk 0:00:21]} 53... Qd3+ {[%clk
0:00:06.3]} 54. Qc3 {[%clk 0:00:20.6]} 54... Qd6 {[%clk 0:00:04.5]} 55. Rf7+
{[%clk 0:00:20.2]} 55... Kb8 {[%clk 0:00:05]} 56. Qc5 {[%clk 0:00:16.2]} 56...
Qe6+ {[%clk 0:00:05.8]} 57. Qc4 {[%clk 0:00:17.6]} 57... Qd6 {[%clk 0:00:06.5]}
58. b5 {[%clk 0:00:13.1]} 58... cxb5 {[%clk 0:00:05]} 59. Qf4 {[%clk 0:00:14.4]}
59... Ka7 {[%clk 0:00:03.2]} 60. Qxd6 {[%clk 0:00:13.8]} 60... b4 {[%clk
0:00:03.4]} 61. Qxb4 {[%clk 0:00:13.5]} 1

[Event "Torneo Nuevo Centro. Jornada 11"]
[Site "Chess.com"]
[Date "2020.08.28"]
[Round "4"]
[White "Luque Saiz, Andrés"]
[Black "Macias Pino, Diego"]
[Result "0-1"]
[WhiteElo "2036"]
[BlackElo "2255"]
[TimeControl "180+2"]
[EndTime "11:11:48 PDT"]
[Termination "Victoria de adivinaquiensoy por abandono"]

1. e4 {[%clk 0:03:01.9]} 1... c6 {[%clk 0:02:59.9]} 2. d4 {[%clk 0:03:02]} 2...
d5 {[%clk 0:03:01.8]} 3. Nd2 {[%clk 0:03:03.3]} 3... dxe4 {[%clk 0:03:00.1]} 4.
Nxe4 {[%clk 0:03:05.2]} 4... Bf5 {[%clk 0:02:58.5]} 5. Ng3 {[%clk 0:03:06]} 5...
Bg6 {[%clk 0:03:00]} 6. Nh3 {[%clk 0:03:07.2]} 6... Nf6 {[%clk 0:02:51.6]} 7. c3
{[%clk 0:03:07.4]} 7... Nbd7 {[%clk 0:02:49.7]} 8. Bc4 {[%clk 0:03:06.7]} 8...
e6 {[%clk 0:02:41.3]} 9. O-O {[%clk 0:03:07.2]} 9... Bd6 {[%clk 0:02:41.8]} 10.
Qe2 {[%clk 0:02:58.7]} 10... Qc7 {[%clk 0:02:37.9]} 11. f4 {[%clk 0:02:18.5]}
11... O-O-O {[%clk 0:02:35.9]} 12. a4 {[%clk 0:02:17.9]} 12... Nd5 {[%clk
0:02:35.3]} 13. a5 {[%clk 0:02:08.6]} 13... h5 {[%clk 0:02:27.2]} 14. Ne4 {[%clk
0:01:48.4]} 14... N7f6 {[%clk 0:02:22.7]} 15. Bxd5 {[%clk 0:01:24]} 15... Nxd5
{[%clk 0:01:10.1]} 16. Nxd6+ {[%clk 0:01:24.3]} 16... Qxd6 {[%clk 0:01:06.1]}
17. Ng5 {[%clk 0:01:25.2]} 17... Rd7 {[%clk 0:01:02.4]} 18. Ne4 {[%clk
0:01:25.4]} 18... Bxe4 {[%clk 0:00:55.3]} 19. Qxe4 {[%clk 0:01:27.3]} 19... g6
{[%clk 0:00:51.7]} 20. Bd2 {[%clk 0:01:21.4]} 20... h4 {[%clk 0:00:46.8]} 21. b4
{[%clk 0:00:50.2]} 21... Nf6 {[%clk 0:00:30.2]} 22. Qe2 {[%clk 0:00:49]} 22...
Rh5 {[%clk 0:00:25.3]} 23. Rab1 {[%clk 0:00:38.7]} 23... a6 {[%clk 0:00:23.8]}
24. Qd3 {[%clk 0:00:35.4]} 24... h3 {[%clk 0:00:16.7]} 25. g3 {[%clk 0:00:35.3]}
25... Qd5 {[%clk 0:00:16.1]} 26. Qf3 {[%clk 0:00:34]} 26... Qxf3 {[%clk
0:00:17]} 27. Rxf3 {[%clk 0:00:35.9]} 27... Ne4 {[%clk 0:00:18.8]} 28. Be1
{[%clk 0:00:36.6]} 28... Nd6 {[%clk 0:00:19.9]} 29. Kf2 {[%clk 0:00:36.1]} 29...
Nc4 {[%clk 0:00:20.9]} 30. Ke2 {[%clk 0:00:34.5]} 30... b5 {[%clk 0:00:16]} 31.
g4 {[%clk 0:00:27.9]} 31... Rh8 {[%clk 0:00:16.2]} 32. Rd1 {[%clk 0:00:22.9]}
32... f5 {[%clk 0:00:17.2]} 33. g5 {[%clk 0:00:23.4]} 33... Kc7 {[%clk
0:00:16.4]} 34. Rdd3 {[%clk 0:00:24]} 34... Rdh7 {[%clk 0:00:17.5]} 35. Bg3
{[%clk 0:00:22.8]} 35... Kd6 {[%clk 0:00:18.3]} 36. Rd1 {[%clk 0:00:22.3]} 36...
Kd5 {[%clk 0:00:19.4]} 37. Rdf1 {[%clk 0:00:21.9]} 37... Ke4 {[%clk 0:00:17.9]}
38. Rd1 {[%clk 0:00:22.6]} 38... Rd7 {[%clk 0:00:13.2]} 39. Rdd3 {[%clk
0:00:23.2]} 39... Rdh7 {[%clk 0:00:13]} 40. Rde3+ {[%clk 0:00:21.3]} 40... Nxe3
{[%clk 0:00:12.2]} 41. Rxe3+ {[%clk 0:00:23.2]} 41... Kd5 {[%clk 0:00:13.8]} 42.
Kd3 {[%clk 0:00:24.4]} 42... Rb7 {[%clk 0:00:08.5]} 43. Re5+ {[%clk 0:00:25.2]}
43... Kd6 {[%clk 0:00:10]} 44. Rc5 {[%clk 0:00:25.7]} 44... Rc8 {[%clk
0:00:10.2]} 45. Re5 {[%clk 0:00:23.6]} 45... Rh7 {[%clk 0:00:09.5]} 46. Rc5
{[%clk 0:00:23.6]} 46... Rch8 {[%clk 0:00:10.8]} 47. Re5 {[%clk 0:00:24]} 47...
Kd7 {[%clk 0:00:10.8]} 48. Rc5 {[%clk 0:00:24.5]} 48... Rh4 {[%clk 0:00:12.1]}
49. Re5 {[%clk 0:00:18.8]} 49... Rg4 {[%clk 0:00:11.8]} 50. Re3 {[%clk
0:00:19.9]} 50... Kd6 {[%clk 0:00:11.7]} 51. Rf3 {[%clk 0:00:21]} 51... Rh5
{[%clk 0:00:07.7]} 52. Ke3 {[%clk 0:00:21.7]} 52... Kd5 {[%clk 0:00:08]} 53. Kd3
{[%clk 0:00:22.6]} 53... Rh7 {[%clk 0:00:09.1]} 54. Re3 {[%clk 0:00:23]} 54...
Rhh4 {[%clk 0:00:07.9]} 55. Rf3 {[%clk 0:00:24.1]} 55... Rh5 {[%clk 0:00:08.4]}
56. Re3 {[%clk 0:00:22.8]} 56... Kd6 {[%clk 0:00:06.9]} 57. Rf3 {[%clk
0:00:23.2]} 57... Kd7 {[%clk 0:00:08.5]} 58. Ke3 {[%clk 0:00:24]} 58... Rh8
{[%clk 0:00:08.5]} 59. Kd3 {[%clk 0:00:24.5]} 59... Rd8 {[%clk 0:00:06.6]} 60.
Re3 {[%clk 0:00:24.2]} 60... Ke7 {[%clk 0:00:07.7]} 61. Rf3 {[%clk 0:00:23.9]}
61... Rd5 {[%clk 0:00:08.7]} 62. Re3 {[%clk 0:00:24.2]} 62... Kd7 {[%clk
0:00:10]} 63. Ke2 {[%clk 0:00:24.4]} 63... Kc7 {[%clk 0:00:10.1]} 64. Rxe6
{[%clk 0:00:22.1]} 64... Rxg3 {[%clk 0:00:09.2]} 65. hxg3 {[%clk 0:00:20.8]}
65... h2 {[%clk 0:00:10.6]} 66. Re7+ {[%clk 0:00:15.6]} 66... Rd7 {[%clk
0:00:11.9]} 0

[Event "Torneo Nuevo Centro. Jornada 11"]
[Site "Chess.com"]
[Date "2020.08.28"]
[Round "4"]
[White "Birnoveanu, Petru"]
[Black "Miranda Calvo, Max Rodrigo"]
[Result "1-0"]
[WhiteElo "1705"]
[BlackElo "1303"]
[TimeControl "180+2"]
[EndTime "11:13:15 PDT"]
[Termination "Victoria de piculet por abandono"]

1. e4 {[%clk 0:03:01.9]} 1... e5 {[%clk 0:03:00.6]} 2. Nf3 {[%clk 0:02:57.5]}
2... Nc6 {[%clk 0:03:00.3]} 3. Bc4 {[%clk 0:02:57.7]} 3... Bc5 {[%clk
0:02:56.6]} 4. O-O {[%clk 0:02:57.2]} 4... d6 {[%clk 0:02:50.6]} 5. Nc3 {[%clk
0:02:56.7]} 5... Bg4 {[%clk 0:02:48.8]} 6. Na4 {[%clk 0:02:51.4]} 6... Nd4
{[%clk 0:02:47.1]} 7. Be2 {[%clk 0:02:49.4]} 7... Nxe2+ {[%clk 0:02:45]} 8. Qxe2
{[%clk 0:02:48.8]} 8... Ne7 {[%clk 0:02:45.2]} 9. Nxc5 {[%clk 0:02:48.5]} 9...
dxc5 {[%clk 0:02:40.7]} 10. h3 {[%clk 0:02:49.4]} 10... Bh5 {[%clk 0:02:40.5]}
11. g4 {[%clk 0:02:49.2]} 11... Bg6 {[%clk 0:02:40.8]} 12. Nxe5 {[%clk
0:02:49.8]} 12... O-O {[%clk 0:02:39.9]} 13. f4 {[%clk 0:02:50]} 13... h6 {[%clk
0:02:29.8]} 14. f5 {[%clk 0:02:49.8]} 14... Bh7 {[%clk 0:02:30.4]} 15. d3 {[%clk
0:02:47.8]} 15... Qd6 {[%clk 0:02:27.9]} 16. Nc4 {[%clk 0:02:43.3]} 16... Qg3+
{[%clk 0:02:26.3]} 17. Qg2 {[%clk 0:02:43.7]} 17... Qxg2+ {[%clk 0:02:26.1]} 18.
Kxg2 {[%clk 0:02:44.6]} 18... Nc6 {[%clk 0:02:26.1]} 19. Bf4 {[%clk 0:02:42.8]}
19... Rac8 {[%clk 0:02:25]} 20. c3 {[%clk 0:02:41.1]} 20... b5 {[%clk
0:02:23.8]} 21. Ne3 {[%clk 0:02:38.9]} 21... f6 {[%clk 0:02:18.2]} 22. Rad1
{[%clk 0:02:37.5]} 22... Ne5 {[%clk 0:02:18.6]} 23. Bxe5 {[%clk 0:02:36]} 23...
fxe5 {[%clk 0:02:19.1]} 24. Nd5 {[%clk 0:02:34.9]} 24... c6 {[%clk 0:02:18.8]}
25. Ne7+ {[%clk 0:02:34.9]} 25... Kf7 {[%clk 0:02:17.5]} 26. Nxc8 {[%clk
0:02:35.6]} 26... Rxc8 {[%clk 0:02:19.4]} 27. Kf3 {[%clk 0:02:35.2]} 27... Kf6
{[%clk 0:02:19.3]} 28. h4 {[%clk 0:02:32.6]} 28... Bg8 {[%clk 0:02:14.7]} 29. a3
{[%clk 0:02:30.8]} 29... Rd8 {[%clk 0:02:13.7]} 30. Ke3 {[%clk 0:02:28.2]} 30...
Bf7 {[%clk 0:02:05.1]} 31. Rd2 {[%clk 0:02:28]} 31... a5 {[%clk 0:02:05.6]} 32.
Rg1 {[%clk 0:02:23]} 32... b4 {[%clk 0:02:00.4]} 33. axb4 {[%clk 0:02:21]} 33...
cxb4 {[%clk 0:01:58.4]} 34. g5+ {[%clk 0:02:20.9]} 34... hxg5 {[%clk 0:01:46.5]}
35. hxg5+ {[%clk 0:02:21]} 35... Ke7 {[%clk 0:01:45]} 36. d4 {[%clk 0:02:19.7]}
36... exd4+ {[%clk 0:01:44.7]} 37. Rxd4 {[%clk 0:02:13.8]} 37... Rc8 {[%clk
0:01:26]} 38. cxb4 {[%clk 0:02:13.2]} 38... axb4 {[%clk 0:01:25.2]} 39. Rc1
{[%clk 0:02:05.9]} 39... c5 {[%clk 0:01:27.1]} 40. Rd2 {[%clk 0:02:04.5]} 40...
c4 {[%clk 0:01:24.8]} 41. e5 {[%clk 0:02:03.5]} 41... c3 {[%clk 0:01:21.3]} 42.
bxc3 {[%clk 0:02:03]} 42... bxc3 {[%clk 0:01:21.7]} 43. Rd3 {[%clk 0:02:02.9]}
43... c2 {[%clk 0:01:21.6]} 44. e6 {[%clk 0:02:02.5]} 44... Be8 {[%clk
0:01:20.1]} 45. Rd2 {[%clk 0:02:02.7]} 45... Ba4 {[%clk 0:01:20.2]} 46. Rd4
{[%clk 0:01:58.5]} 46... Rc3+ {[%clk 0:01:13.1]} 47. Kd2 {[%clk 0:01:55.3]}
47... Rc5 {[%clk 0:01:09.3]} 48. Rxa4 {[%clk 0:01:53.9]} 48... Rxf5 {[%clk
0:01:08.2]} 49. Re4 {[%clk 0:01:50.9]} 49... Rxg5 {[%clk 0:01:10]} 50. Rxc2
{[%clk 0:01:50.6]} 50... Rg2+ {[%clk 0:01:07.9]} 51. Kd3 {[%clk 0:01:51.3]}
51... Rg3+ {[%clk 0:01:08.3]} 52. Kd4 {[%clk 0:01:50.4]} 52... Rg1 {[%clk
0:01:08.5]} 53. Rc7+ {[%clk 0:01:50.2]} 53... Ke8 {[%clk 0:01:03.6]} 54. e7
{[%clk 0:01:46.2]} 54... Rd1+ {[%clk 0:01:03.5]} 55. Ke5 {[%clk 0:01:38.2]}
55... Ra1 {[%clk 0:00:47]} 56. Kf5 {[%clk 0:01:00.4]} 56... Ra5+ {[%clk
0:00:38]} 57. Kg6 {[%clk 0:00:59.2]} 57... Ra6+ {[%clk 0:00:35.5]} 58. Kg5
{[%clk 0:00:56.4]} 58... Ra5+ {[%clk 0:00:34.3]} 59. Kf4 {[%clk 0:00:56.9]}
59... g5+ {[%clk 0:00:32.2]} 60. Kg3 {[%clk 0:00:53.7]} 60... Ra3+ {[%clk
0:00:31.4]} 61. Kg4 {[%clk 0:00:54]} 61... Ra8 {[%clk 0:00:28.2]} 62. Re5 {[%clk
0:00:48.6]} 62... Rb8 {[%clk 0:00:27]} 63. Rf5 {[%clk 0:00:34]} 63... Rb4+
{[%clk 0:00:25.9]} 64. Kxg5 {[%clk 0:00:28]} 64... Rg4+ {[%clk 0:00:23.5]} 65.
Kh6 {[%clk 0:00:25.2]} 65... Rg6+ {[%clk 0:00:21.2]} 66. Kh5 {[%clk 0:00:24.6]}
66... Rh6+ {[%clk 0:00:21.8]} 67. Kg4 {[%clk 0:00:24.8]} 67... Rh4+ {[%clk
0:00:22.3]} 68. Kf3 {[%clk 0:00:24.7]} 68... Rh3+ {[%clk 0:00:22.4]} 69. Ke4
{[%clk 0:00:22.5]} 69... Re3+ {[%clk 0:00:22.1]} 70. Kd4 {[%clk 0:00:21.5]}
70... Re4+ {[%clk 0:00:18.9]} 71. Kd5 {[%clk 0:00:19.3]} 71... Re5+ {[%clk
0:00:19.2]} 72. Kd6 {[%clk 0:00:13]} 72... Re6+ {[%clk 0:00:17.5]} 73. Kc5
{[%clk 0:00:10.3]} 73... Rxe7 {[%clk 0:00:06.6]} 74. Rxe7+ {[%clk 0:00:09.6]}
74... Kxe7 {[%clk 0:00:08.5]} 75. Kd5 {[%clk 0:00:09.8]} 75... Kd7 {[%clk
0:00:07.5]} 76. Rf7+ {[%clk 0:00:09.9]} 76... Ke8 {[%clk 0:00:09]} 77. Ra7
{[%clk 0:00:10]} 77... Kd8 {[%clk 0:00:08.7]} 78. Kd6 {[%clk 0:00:10.5]} 78...
Ke8 {[%clk 0:00:09.7]} 79. Ke6 {[%clk 0:00:10.2]} 79... Kd8 {[%clk 0:00:09.2]}
80. Rh7 {[%clk 0:00:08.2]} 80... Kc8 {[%clk 0:00:09.7]} 81. Kd6 {[%clk
0:00:08.8]} 81... Kb8 {[%clk 0:00:11.6]} 82. Kc6 {[%clk 0:00:09.5]} 82... Ka8
{[%clk 0:00:13.4]} 83. Kb6 {[%clk 0:00:10.2]} 83... Kb8 {[%clk 0:00:15.2]} 1